[Event "*** Titled Tuesday Blitz"]
[Site "Chess.com"]
[Date "2021.03.02"]
[Round "6"]
[White "chessdjw"]
[Black "Karla"]
[Result "1-0"]
[WhiteElo "2754"]
[BlackElo "2334"]
[TimeControl "180+1"]
[EndTime "11:07:40 PST"]
[Termination "chessdjw won by resignation"]

1. d4 {[%clk 0:03:00.9]} 1... d5 {[%clk 0:03:00.9]} 2. c4 {[%clk 0:03:00.7]}
2... e6 {[%clk 0:02:59.6]} 3. Nf3 {[%clk 0:02:58.4]} 3... Nf6 {[%clk 0:02:59.9]}
4. g3 {[%clk 0:02:59]} 4... dxc4 {[%clk 0:02:49.2]} 5. Bg2 {[%clk 0:02:59.2]}
5... a6 {[%clk 0:02:45.8]} 6. O-O {[%clk 0:02:57.9]} 6... Nc6 {[%clk 0:02:44.1]}
7. Bg5 {[%clk 0:02:57.3]} 7... Be7 {[%clk 0:02:41]} 8. e3 {[%clk 0:02:52.7]}
8... Nd7 {[%clk 0:02:35]} 9. Bxe7 {[%clk 0:02:51.4]} 9... Qxe7 {[%clk
0:02:33.9]} 10. Nbd2 {[%clk 0:02:51.8]} 10... b5 {[%clk 0:02:25.7]} 11. b3
{[%clk 0:02:43.7]} 11... c3 {[%clk 0:02:21.8]} 12. Ne4 {[%clk 0:02:38.1]} 12...
f5 {[%clk 0:02:13.3]} 13. Nxc3 {[%clk 0:02:36.3]} 13... Bb7 {[%clk 0:02:12.1]}
14. Rc1 {[%clk 0:02:22.5]} 14... O-O {[%clk 0:02:06.3]} 15. Ne2 {[%clk
0:02:08.2]} 15... Rab8 {[%clk 0:01:51.9]} 16. Nf4 {[%clk 0:01:51]} 16... Nf6
{[%clk 0:01:48.5]} 17. Ng5 {[%clk 0:01:45.3]} 17... Nd8 {[%clk 0:01:43.4]} 18.
Bxb7 {[%clk 0:01:36.6]} 18... Rxb7 {[%clk 0:01:44.3]} 19. Qf3 {[%clk 0:01:25.2]}
19... c6 {[%clk 0:01:39.4]} 20. h4 {[%clk 0:00:59.8]} 20... Rd7 {[%clk
0:01:32.1]} 21. Nd3 {[%clk 0:00:56.6]} 21... Rd6 {[%clk 0:01:27]} 22. Ne5 {[%clk
0:00:54.7]} 22... Qe8 {[%clk 0:01:17.5]} 23. Rc2 {[%clk 0:00:52.2]} 23... Nd7
{[%clk 0:01:14.4]} 24. Qf4 {[%clk 0:00:33.4]} 24... Nxe5 {[%clk 0:01:08.4]} 25.
Qxe5 {[%clk 0:00:33.1]} 25... Qd7 {[%clk 0:01:06.1]} 26. Rfc1 {[%clk 0:00:28.8]}
26... Rd5 {[%clk 0:01:02.8]} 27. Qf4 {[%clk 0:00:27.2]} 27... e5 {[%clk
0:01:01.2]} 28. dxe5 {[%clk 0:00:24.9]} 28... Rd1+ {[%clk 0:00:58.9]} 29. Kg2
{[%clk 0:00:19.9]} 29... Rxc1 {[%clk 0:00:56.6]} 30. Rxc1 {[%clk 0:00:20.8]}
30... Qd2 {[%clk 0:00:53.3]} 31. Rc5 {[%clk 0:00:12.7]} 31... h6 {[%clk
0:00:49.1]} 32. e6 {[%clk 0:00:03.8]} 32... hxg5 {[%clk 0:00:45.5]} 33. Qe5
{[%clk 0:00:04]} 33... Re8 {[%clk 0:00:36.2]} 34. e7 {[%clk 0:00:04.5]} 34...
Nf7 {[%clk 0:00:32.6]} 35. Qe6 {[%clk 0:00:05.1]} 35... Qb4 {[%clk 0:00:24.2]}
36. Rxf5 {[%clk 0:00:04.2]} 36... Qxe7 {[%clk 0:00:20]} 37. Qxe7 {[%clk
0:00:04.7]} 37... Rxe7 {[%clk 0:00:20.9]} 38. hxg5 {[%clk 0:00:05.4]} 38... Re5
{[%clk 0:00:20.5]} 39. Rxe5 {[%clk 0:00:04.2]} 39... Nxe5 {[%clk 0:00:21.4]} 40.
f4 {[%clk 0:00:04.6]} 40... Nf7 {[%clk 0:00:21.2]} 41. Kf3 {[%clk 0:00:05.5]}
41... Kh7 {[%clk 0:00:21.6]} 42. Ke4 {[%clk 0:00:05.9]} 42... Kg6 {[%clk
0:00:22.5]} 43. g4 {[%clk 0:00:06.4]} 43... Nd6+ {[%clk 0:00:22.3]} 44. Ke5
{[%clk 0:00:06.8]} 44... Nf7+ {[%clk 0:00:20.6]} 45. Ke6 {[%clk 0:00:07.3]}
45... Nh6 {[%clk 0:00:19.7]} 46. gxh6 {[%clk 0:00:07.1]} 46... Kxh6 {[%clk
0:00:20.6]} 47. g5+ {[%clk 0:00:06.9]} 47... Kg6 {[%clk 0:00:20.7]} 48. e4
{[%clk 0:00:07.4]} 48... c5 {[%clk 0:00:18.5]} 49. Kd5 {[%clk 0:00:07.8]} 49...
Kf7 {[%clk 0:00:15.9]} 50. Kxc5 {[%clk 0:00:07.9]} 50... Ke6 {[%clk 0:00:16.5]}
51. Kb6 {[%clk 0:00:07.4]} 51... g6 {[%clk 0:00:17]} 52. Kxa6 {[%clk 0:00:07.7]}
1-0

[Event "*** Titled Tuesday Blitz"]
[Site "Chess.com"]
[Date "2021.03.02"]
[Round "6"]
[White "mbojan"]
[Black "Bodnar_Mykola"]
[Result "0-1"]
[WhiteElo "2606"]
[BlackElo "2500"]
[TimeControl "180+1"]
[EndTime "11:07:41 PST"]
[Termination "Bodnar_Mykola won on time"]

1. f4 {[%clk 0:03:00.9]} 1... d5 {[%clk 0:02:52.6]} 2. Nf3 {[%clk 0:03:00.6]}
2... Bg4 {[%clk 0:02:53.5]} 3. Ne5 {[%clk 0:03:00.3]} 3... Bh5 {[%clk
0:02:53.3]} 4. g3 {[%clk 0:02:52.7]} 4... f6 {[%clk 0:02:51.9]} 5. Nf3 {[%clk
0:02:52.7]} 5... Nd7 {[%clk 0:02:50.1]} 6. Bg2 {[%clk 0:02:52]} 6... e5 {[%clk
0:02:49.8]} 7. d3 {[%clk 0:02:40.3]} 7... Bd6 {[%clk 0:02:48.8]} 8. O-O {[%clk
0:02:39.5]} 8... c6 {[%clk 0:02:48]} 9. Nc3 {[%clk 0:02:38.3]} 9... Bxf3 {[%clk
0:02:37.5]} 10. Bxf3 {[%clk 0:02:36.6]} 10... Ne7 {[%clk 0:02:38]} 11. e4 {[%clk
0:02:36.1]} 11... d4 {[%clk 0:02:35]} 12. Ne2 {[%clk 0:02:36.4]} 12... O-O
{[%clk 0:02:35.5]} 13. f5 {[%clk 0:02:36.3]} 13... c5 {[%clk 0:02:35.8]} 14. g4
{[%clk 0:02:31.3]} 14... b5 {[%clk 0:02:34.6]} 15. g5 {[%clk 0:02:31.5]} 15...
c4 {[%clk 0:02:32]} 16. Ng3 {[%clk 0:02:23.8]} 16... fxg5 {[%clk 0:02:21.1]} 17.
Bxg5 {[%clk 0:02:22.1]} 17... Nf6 {[%clk 0:02:21.3]} 18. Nh5 {[%clk 0:02:18.6]}
18... Kh8 {[%clk 0:02:08.5]} 19. Kh1 {[%clk 0:02:12.2]} 19... Neg8 {[%clk
0:02:06.6]} 20. Rg1 {[%clk 0:02:06.4]} 20... Qd7 {[%clk 0:02:03.8]} 21. Bxf6
{[%clk 0:01:46]} 21... gxf6 {[%clk 0:01:49.6]} 22. Ng7 {[%clk 0:01:45.5]} 22...
Nh6 {[%clk 0:01:42]} 23. Ne6 {[%clk 0:01:43.1]} 23... Rg8 {[%clk 0:01:41.9]} 24.
Qd2 {[%clk 0:01:42.8]} 24... Nf7 {[%clk 0:01:34]} 25. h4 {[%clk 0:01:33.4]}
25... Rae8 {[%clk 0:01:13.9]} 26. Bh5 {[%clk 0:01:23]} 26... Qe7 {[%clk
0:00:52.3]} 27. Bxf7 {[%clk 0:01:00.5]} 27... Qxf7 {[%clk 0:00:51.9]} 28. Qe2
{[%clk 0:00:43.9]} 28... h5 {[%clk 0:00:29.5]} 29. Kh2 {[%clk 0:00:10.8]} 29...
Kh7 {[%clk 0:00:28.9]} 30. Kh3 {[%clk 0:00:10.8]} 30... a5 {[%clk 0:00:26.3]}
31. Raf1 {[%clk 0:00:05.6]} 31... a4 {[%clk 0:00:23.7]} 32. b3 {[%clk
0:00:04.5]} 32... cxb3 {[%clk 0:00:20.6]} 33. cxb3 {[%clk 0:00:04.4]} 33... a3
{[%clk 0:00:20.3]} 34. Rg6 {[%clk 0:00:02.4]} 34... Rxg6 {[%clk 0:00:18.6]} 35.
Qxh5+ {[%clk 0:00:01.3]} 35... Kg8 {[%clk 0:00:17.6]} 36. Qxg6+ {[%clk
0:00:01.5]} 36... Qxg6 {[%clk 0:00:17.8]} 37. fxg6 {[%clk 0:00:02.1]} 37... Rxe6
{[%clk 0:00:18.5]} 38. Kg4 {[%clk 0:00:02.7]} 38... Be7 {[%clk 0:00:17.5]} 39.
Kf5 {[%clk 0:00:02.5]} 39... Rc6 {[%clk 0:00:18]} 40. h5 {[%clk 0:00:03.1]}
40... Kg7 {[%clk 0:00:18.1]} 41. h6+ {[%clk 0:00:03.3]} 41... Kxh6 {[%clk
0:00:16.5]} 42. Rh1+ {[%clk 0:00:04]} 42... Kg7 {[%clk 0:00:17]} 43. Rh7+ {[%clk
0:00:04.9]} 43... Kf8 {[%clk 0:00:17.5]} 44. Rh8+ {[%clk 0:00:05.4]} 44... Kg7
{[%clk 0:00:17.5]} 45. Rh7+ {[%clk 0:00:05.8]} 45... Kf8 {[%clk 0:00:17.2]} 46.
Rf7+ {[%clk 0:00:02.8]} 46... Ke8 {[%clk 0:00:16.5]} 47. Rg7 {[%clk 0:00:01.1]}
47... Bf8 {[%clk 0:00:15.7]} 0-1

[Event "*** Titled Tuesday Blitz"]
[Site "Chess.com"]
[Date "2021.03.02"]
[Round "6"]
[White "MatyChess1"]
[Black "Forantes"]
[Result "1-0"]
[WhiteElo "2592"]
[BlackElo "2430"]
[TimeControl "180+1"]
[EndTime "11:07:41 PST"]
[Termination "MatyChess1 won on time"]

1. e4 {[%clk 0:03:00.9]} 1... c5 {[%clk 0:02:59.4]} 2. Nf3 {[%clk 0:02:57.3]}
2... Nc6 {[%clk 0:02:59.4]} 3. d4 {[%clk 0:02:56.3]} 3... cxd4 {[%clk
0:02:59.7]} 4. Nxd4 {[%clk 0:02:57.2]} 4... e5 {[%clk 0:02:59.9]} 5. Nb5 {[%clk
0:02:56.2]} 5... a6 {[%clk 0:03:00.3]} 6. N5c3 {[%clk 0:02:28.7]} 6... Nf6
{[%clk 0:02:59]} 7. Bg5 {[%clk 0:02:26.5]} 7... Bb4 {[%clk 0:02:36.5]} 8. Bc4
{[%clk 0:02:17.5]} 8... h6 {[%clk 0:02:30.5]} 9. Bxf6 {[%clk 0:02:17.1]} 9...
Qxf6 {[%clk 0:02:22.4]} 10. O-O {[%clk 0:02:17.3]} 10... Qg6 {[%clk 0:02:14.4]}
11. Nd5 {[%clk 0:02:14.6]} 11... O-O {[%clk 0:02:00.9]} 12. Nbc3 {[%clk
0:02:05.1]} 12... b5 {[%clk 0:01:54.3]} 13. Bb3 {[%clk 0:02:03.4]} 13... Bc5
{[%clk 0:01:49.1]} 14. a4 {[%clk 0:01:54.5]} 14... b4 {[%clk 0:01:45.1]} 15. Ne2
{[%clk 0:01:54.1]} 15... Bb7 {[%clk 0:01:42]} 16. Ng3 {[%clk 0:01:49.9]} 16...
Nd4 {[%clk 0:01:41.6]} 17. Bc4 {[%clk 0:01:42.7]} 17... Rac8 {[%clk 0:01:36.5]}
18. c3 {[%clk 0:01:40.6]} 18... bxc3 {[%clk 0:01:30.6]} 19. bxc3 {[%clk
0:01:40.4]} 19... Ne6 {[%clk 0:01:30.7]} 20. Nf5 {[%clk 0:01:38.8]} 20... Bxd5
{[%clk 0:01:21.4]} 21. Bxd5 {[%clk 0:01:36.9]} 21... Nf4 {[%clk 0:01:21.2]} 22.
g3 {[%clk 0:01:36.7]} 22... Kh8 {[%clk 0:00:55.1]} 23. Rb1 {[%clk 0:01:33]}
23... Nh3+ {[%clk 0:00:44.7]} 24. Kg2 {[%clk 0:01:30.1]} 24... Nxf2 {[%clk
0:00:44.2]} 25. Rxf2 {[%clk 0:01:25.4]} 25... Bxf2 {[%clk 0:00:45.1]} 26. Ne7
{[%clk 0:00:50.4]} 26... Qf6 {[%clk 0:00:42.2]} 27. Nxc8 {[%clk 0:00:50.4]}
27... Rxc8 {[%clk 0:00:41.3]} 28. Qd3 {[%clk 0:00:30.3]} 28... Bc5 {[%clk
0:00:26.8]} 29. Rf1 {[%clk 0:00:30.8]} 29... Qb6 {[%clk 0:00:26.6]} 30. Bxf7
{[%clk 0:00:06.9]} 30... d6 {[%clk 0:00:18.1]} 31. Bc4 {[%clk 0:00:04.2]} 31...
Qb2+ {[%clk 0:00:16.2]} 32. Qe2 {[%clk 0:00:04.5]} 32... Qxc3 {[%clk 0:00:13.6]}
33. Bxa6 {[%clk 0:00:04.7]} 33... Rb8 {[%clk 0:00:12.7]} 34. Bb5 {[%clk
0:00:05]} 34... Qd4 {[%clk 0:00:06.9]} 35. Rf3 {[%clk 0:00:05.6]} 35... Bb6
{[%clk 0:00:03.6]} 36. Qf1 {[%clk 0:00:05.7]} 36... Rc8 {[%clk 0:00:02.3]} 37.
Rf8+ {[%clk 0:00:05.5]} 37... Rxf8 {[%clk 0:00:02.9]} 38. Qxf8+ {[%clk
0:00:06.4]} 38... Kh7 {[%clk 0:00:03.7]} 39. Bd7 {[%clk 0:00:05.9]} 39... Qd2+
{[%clk 0:00:02.3]} 40. Kh3 {[%clk 0:00:04.8]} 40... Qg5 {[%clk 0:00:02.7]} 41.
Bf5+ {[%clk 0:00:04.8]} 41... g6 {[%clk 0:00:03.4]} 42. Qf7+ {[%clk 0:00:05.1]}
42... Kh8 {[%clk 0:00:04]} 43. Bxg6 {[%clk 0:00:05.3]} 1-0

[Event "*** Titled Tuesday Blitz"]
[Site "Chess.com"]
[Date "2021.03.02"]
[Round "6"]
[White "atalz0"]
[Black "ruvat"]
[Result "1/2-1/2"]
[WhiteElo "2462"]
[BlackElo "2336"]
[TimeControl "180+1"]
[EndTime "11:07:41 PST"]
[Termination "Game drawn by repetition"]

1. d4 {[%clk 0:03:00.9]} 1... d6 {[%clk 0:02:59.7]} 2. e4 {[%clk 0:03:00.5]}
2... Nf6 {[%clk 0:02:59.5]} 3. f3 {[%clk 0:02:54.9]} 3... c6 {[%clk 0:02:56.9]}
4. c4 {[%clk 0:02:51.9]} 4... e5 {[%clk 0:02:54.6]} 5. d5 {[%clk 0:02:50.2]}
5... Be7 {[%clk 0:02:50.6]} 6. Nc3 {[%clk 0:02:49.6]} 6... O-O {[%clk
0:02:50.3]} 7. Be3 {[%clk 0:02:49.7]} 7... Nh5 {[%clk 0:02:37.3]} 8. Qd2 {[%clk
0:02:48.2]} 8... h6 {[%clk 0:02:35.9]} 9. g3 {[%clk 0:02:42.5]} 9... c5 {[%clk
0:02:35.5]} 10. O-O-O {[%clk 0:02:40.7]} 10... Na6 {[%clk 0:02:31.7]} 11. Kb1
{[%clk 0:02:31.2]} 11... Nc7 {[%clk 0:02:31]} 12. Nge2 {[%clk 0:02:30.3]} 12...
a6 {[%clk 0:02:30.6]} 13. Nc1 {[%clk 0:02:27.6]} 13... Bd7 {[%clk 0:02:28.6]}
14. Be2 {[%clk 0:02:13.3]} 14... Nf6 {[%clk 0:02:26.6]} 15. g4 {[%clk
0:02:06.6]} 15... Nh7 {[%clk 0:02:23.1]} 16. h4 {[%clk 0:02:02.9]} 16... Bxh4
{[%clk 0:02:22.5]} 17. Bxh6 {[%clk 0:01:55.6]} 17... Bg5 {[%clk 0:02:12.2]} 18.
Bxg5 {[%clk 0:01:37.6]} 18... Qxg5 {[%clk 0:02:12]} 19. Qe1 {[%clk 0:01:30.7]}
19... Nf6 {[%clk 0:02:06.1]} 20. Rh2 {[%clk 0:01:27.1]} 20... g6 {[%clk
0:02:01.8]} 21. Qf2 {[%clk 0:01:21.1]} 21... Kg7 {[%clk 0:02:00.8]} 22. Rdh1
{[%clk 0:01:20.2]} 22... Rh8 {[%clk 0:02:00.6]} 23. Nd3 {[%clk 0:01:17.6]} 23...
b5 {[%clk 0:01:52.1]} 24. Rxh8 {[%clk 0:00:43]} 24... Rxh8 {[%clk 0:01:50.7]}
25. Rxh8 {[%clk 0:00:43.9]} 25... Kxh8 {[%clk 0:01:51]} 26. Nxc5 {[%clk
0:00:44]} 26... dxc5 {[%clk 0:01:36]} 27. Qxc5 {[%clk 0:00:44.9]} 27... Nfe8
{[%clk 0:01:26]} 28. Qf8+ {[%clk 0:00:42.6]} 28... Kh7 {[%clk 0:01:20]} 29.
Qxf7+ {[%clk 0:00:43.5]} 29... Kh6 {[%clk 0:01:19.6]} 30. Qxd7 {[%clk
0:00:42.6]} 30... b4 {[%clk 0:01:15.6]} 31. d6 {[%clk 0:00:31.6]} 31... bxc3
{[%clk 0:01:12.6]} 32. dxc7 {[%clk 0:00:30.8]} 32... Nxc7 {[%clk 0:01:12.4]} 33.
bxc3 {[%clk 0:00:15.4]} 33... Qe3 {[%clk 0:01:10.3]} 34. Qxc7 {[%clk 0:00:13.8]}
34... Qxe2 {[%clk 0:01:10.4]} 35. Qxe5 {[%clk 0:00:13.6]} 35... Qxf3 {[%clk
0:01:10.5]} 36. g5+ {[%clk 0:00:12.6]} 36... Kh5 {[%clk 0:01:09.8]} 37. Kb2
{[%clk 0:00:12.4]} 37... Qe2+ {[%clk 0:01:01.3]} 38. Kb3 {[%clk 0:00:12.5]}
38... Qd1+ {[%clk 0:00:57.4]} 39. Kb4 {[%clk 0:00:12.5]} 39... Qb1+ {[%clk
0:00:55.2]} 40. Kc5 {[%clk 0:00:12.7]} 40... Qxa2 {[%clk 0:00:54.2]} 41. Kb6
{[%clk 0:00:11.6]} 41... Qxc4 {[%clk 0:00:51.6]} 42. Qd4 {[%clk 0:00:09.8]}
42... Qb5+ {[%clk 0:00:49.7]} 43. Ka7 {[%clk 0:00:09.3]} 43... a5 {[%clk
0:00:43]} 44. c4 {[%clk 0:00:09.1]} 44... Qb4 {[%clk 0:00:43.1]} 45. Qd1+ {[%clk
0:00:07.7]} 45... Kxg5 {[%clk 0:00:41.9]} 46. Qc1+ {[%clk 0:00:07.8]} 46... Kf6
{[%clk 0:00:41]} 47. c5 {[%clk 0:00:08.2]} 47... Ke7 {[%clk 0:00:33.3]} 48. c6
{[%clk 0:00:08.4]} 48... Qd4+ {[%clk 0:00:29.7]} 49. Kb7 {[%clk 0:00:07.5]}
49... Qb4+ {[%clk 0:00:29]} 50. Ka8 {[%clk 0:00:06]} 50... Qb6 {[%clk
0:00:26.1]} 51. c7 {[%clk 0:00:05.7]} 51... Qa6+ {[%clk 0:00:25.9]} 52. Kb8
{[%clk 0:00:06.2]} 52... Qb6+ {[%clk 0:00:26]} 53. Kc8 {[%clk 0:00:06.2]} 53...
Qa6+ {[%clk 0:00:25.4]} 54. Kb8 {[%clk 0:00:06.6]} 54... Qb6+ {[%clk 0:00:25.2]}
55. Ka8 {[%clk 0:00:07]} 55... Qa6+ {[%clk 0:00:25.3]} 56. Kb8 {[%clk
0:00:07.5]} 1/2-1/2

[Event "*** Titled Tuesday Blitz"]
[Site "Chess.com"]
[Date "2021.03.02"]
[Round "6"]
[White "Politov_Pavel"]
[Black "GregShahade"]
[Result "1/2-1/2"]
[WhiteElo "2414"]
[BlackElo "2629"]
[TimeControl "180+1"]
[EndTime "11:07:46 PST"]
[Termination "Game drawn - insufficient material"]

1. d4 {[%clk 0:03:00.9]} 1... Nf6 {[%clk 0:02:59.7]} 2. Nf3 {[%clk 0:03:00.1]}
2... g6 {[%clk 0:03:00]} 3. c4 {[%clk 0:03:00.1]} 3... Bg7 {[%clk 0:03:00.1]} 4.
Nc3 {[%clk 0:03:00.7]} 4... d5 {[%clk 0:03:00.4]} 5. cxd5 {[%clk 0:03:00]} 5...
Nxd5 {[%clk 0:03:01.3]} 6. e4 {[%clk 0:03:00.5]} 6... Nxc3 {[%clk 0:03:01.6]} 7.
bxc3 {[%clk 0:03:01.4]} 7... c5 {[%clk 0:03:00]} 8. Rb1 {[%clk 0:02:55.3]} 8...
O-O {[%clk 0:02:58.2]} 9. Be2 {[%clk 0:02:54.9]} 9... cxd4 {[%clk 0:02:58.7]}
10. cxd4 {[%clk 0:02:54.5]} 10... Qa5+ {[%clk 0:02:59.5]} 11. Qd2 {[%clk
0:02:54.6]} 11... Qxd2+ {[%clk 0:02:59.3]} 12. Bxd2 {[%clk 0:02:55.5]} 12... b6
{[%clk 0:02:58.5]} 13. O-O {[%clk 0:02:48.2]} 13... Bb7 {[%clk 0:02:58.9]} 14.
d5 {[%clk 0:02:32.8]} 14... Ba6 {[%clk 0:02:59.1]} 15. Bxa6 {[%clk 0:02:24.4]}
15... Nxa6 {[%clk 0:03:00]} 16. Rfc1 {[%clk 0:02:24.8]} 16... f5 {[%clk
0:02:48.4]} 17. Ng5 {[%clk 0:02:08.1]} 17... fxe4 {[%clk 0:02:44.9]} 18. Ne6
{[%clk 0:01:51.5]} 18... Rf5 {[%clk 0:02:41.7]} 19. Rc4 {[%clk 0:01:20.1]} 19...
Rxd5 {[%clk 0:02:32.5]} 20. Be3 {[%clk 0:01:19.2]} 20... Bf6 {[%clk 0:02:19.9]}
21. Ra4 {[%clk 0:01:11.9]} 21... Ra5 {[%clk 0:01:42.4]} 22. Rxa5 {[%clk
0:01:05.2]} 22... bxa5 {[%clk 0:01:43.3]} 23. Rb7 {[%clk 0:01:04.9]} 23... Nb4
{[%clk 0:01:41.7]} 24. a3 {[%clk 0:01:00.1]} 24... Nc2 {[%clk 0:01:25.1]} 25.
Bxa7 {[%clk 0:00:54.6]} 25... Nxa3 {[%clk 0:01:19.6]} 26. g4 {[%clk 0:00:52]}
26... g5 {[%clk 0:01:14.9]} 27. h4 {[%clk 0:00:48.2]} 27... h6 {[%clk
0:01:13.6]} 28. hxg5 {[%clk 0:00:37.9]} 28... hxg5 {[%clk 0:01:14.5]} 29. Bc5
{[%clk 0:00:37.6]} 29... Nc4 {[%clk 0:01:09.6]} 30. Bxe7 {[%clk 0:00:37.6]}
30... Bxe7 {[%clk 0:01:03.5]} 31. Rxe7 {[%clk 0:00:38.5]} 31... a4 {[%clk
0:01:02.8]} 32. Nxg5 {[%clk 0:00:38.5]} 32... Nd6 {[%clk 0:00:46.1]} 33. Nxe4
{[%clk 0:00:35.1]} 33... a3 {[%clk 0:00:32.1]} 34. Nxd6 {[%clk 0:00:25.7]} 34...
a2 {[%clk 0:00:32.4]} 35. Re1 {[%clk 0:00:25.5]} 35... a1=Q {[%clk 0:00:32.9]}
36. Rxa1 {[%clk 0:00:26.1]} 36... Rxa1+ {[%clk 0:00:26.5]} 37. Kg2 {[%clk
0:00:25.8]} 37... Ra3 {[%clk 0:00:24.7]} 38. Nf5 {[%clk 0:00:24]} 38... Kf7
{[%clk 0:00:24.6]} 39. Ne3 {[%clk 0:00:24.6]} 39... Kg6 {[%clk 0:00:22]} 40. Kg3
{[%clk 0:00:25.1]} 40... Rb3 {[%clk 0:00:22.4]} 41. Kh4 {[%clk 0:00:23.2]} 41...
Ra3 {[%clk 0:00:19.7]} 42. Nd1 {[%clk 0:00:14.1]} 42... Rf3 {[%clk 0:00:14.3]}
43. g5 {[%clk 0:00:13.3]} 43... Rf4+ {[%clk 0:00:07.9]} 44. Kg3 {[%clk
0:00:13.5]} 44... Kxg5 {[%clk 0:00:08.4]} 45. Ne3 {[%clk 0:00:13.3]} 45... Ra4
{[%clk 0:00:08.6]} 46. Ng2 {[%clk 0:00:13.1]} 46... Ra3+ {[%clk 0:00:08.9]} 47.
Ne3 {[%clk 0:00:13.5]} 47... Rb3 {[%clk 0:00:09.2]} 48. Kf3 {[%clk 0:00:14.1]}
48... Ra3 {[%clk 0:00:09.7]} 49. Kg3 {[%clk 0:00:14.8]} 49... Rb3 {[%clk
0:00:10.3]} 50. Kf3 {[%clk 0:00:15.2]} 50... Ra3 {[%clk 0:00:11]} 51. Ke4 {[%clk
0:00:15]} 51... Ra4+ {[%clk 0:00:11.1]} 52. Ke5 {[%clk 0:00:14.5]} 52... Ra5+
{[%clk 0:00:11.5]} 53. Nd5 {[%clk 0:00:15.1]} 53... Rxd5+ {[%clk 0:00:09.6]} 54.
Kxd5 {[%clk 0:00:14.5]} 54... Kf4 {[%clk 0:00:10.4]} 55. f3 {[%clk 0:00:10.8]}
55... Kxf3 {[%clk 0:00:10.1]} 1/2-1/2

[Event "*** Titled Tuesday Blitz"]
[Site "Chess.com"]
[Date "2021.03.02"]
[Round "6"]
[White "NTBT_DHS"]
[Black "GelmanAlexander"]
[Result "1-0"]
[WhiteElo "2770"]
[BlackElo "2553"]
[TimeControl "180+1"]
[EndTime "11:07:47 PST"]
[Termination "NTBT_DHS won on time"]

1. d4 {[%clk 0:03:00.9]} 1... Nf6 {[%clk 0:02:59.8]} 2. c4 {[%clk 0:03:01.5]}
2... c5 {[%clk 0:03:00.3]} 3. d5 {[%clk 0:03:01.3]} 3... b5 {[%clk 0:03:00.9]}
4. cxb5 {[%clk 0:03:00.9]} 4... a6 {[%clk 0:03:01.4]} 5. bxa6 {[%clk 0:03:01.8]}
5... e6 {[%clk 0:03:01.9]} 6. Nc3 {[%clk 0:03:01.7]} 6... exd5 {[%clk
0:03:02.5]} 7. Nxd5 {[%clk 0:03:01.8]} 7... Nxa6 {[%clk 0:03:03.1]} 8. e4 {[%clk
0:02:59.2]} 8... Nxd5 {[%clk 0:03:02.9]} 9. exd5 {[%clk 0:02:58.6]} 9... Nb4
{[%clk 0:03:03.1]} 10. Bc4 {[%clk 0:02:54.7]} 10... Qe7+ {[%clk 0:03:02.4]} 11.
Kf1 {[%clk 0:02:41]} 11... Ba6 {[%clk 0:01:41.5]} 12. Bxa6 {[%clk 0:02:07.6]}
12... Rxa6 {[%clk 0:01:42.4]} 13. a3 {[%clk 0:02:07.9]} 13... Qe4 {[%clk
0:01:29.1]} 14. Qe2 {[%clk 0:01:32.9]} 14... Qxe2+ {[%clk 0:01:27.9]} 15. Nxe2
{[%clk 0:01:32.2]} 15... Nxd5 {[%clk 0:01:26.3]} 16. Nf4 {[%clk 0:01:25.9]}
16... Nxf4 {[%clk 0:01:09]} 17. Bxf4 {[%clk 0:01:26.8]} 17... Be7 {[%clk
0:00:53.5]} 18. Re1 {[%clk 0:01:21.8]} 18... f6 {[%clk 0:00:48.9]} 19. h4 {[%clk
0:01:02.6]} 19... Kf7 {[%clk 0:00:48.2]} 20. Rh3 {[%clk 0:01:02.4]} 20... d5
{[%clk 0:00:42.7]} 21. Rb3 {[%clk 0:01:02.1]} 21... Ra7 {[%clk 0:00:38]} 22. Rb5
{[%clk 0:01:01.7]} 22... Rc8 {[%clk 0:00:35]} 23. Ke2 {[%clk 0:01:01.3]} 23...
d4 {[%clk 0:00:30]} 24. Kd3 {[%clk 0:00:58.9]} 24... Rd7 {[%clk 0:00:29.8]} 25.
Rc1 {[%clk 0:00:48.5]} 25... f5 {[%clk 0:00:26.1]} 26. g3 {[%clk 0:00:45.9]}
26... g6 {[%clk 0:00:26.6]} 27. a4 {[%clk 0:00:45.6]} 27... Ra7 {[%clk
0:00:21.8]} 28. b3 {[%clk 0:00:44.9]} 28... Bf8 {[%clk 0:00:21.7]} 29. Be5
{[%clk 0:00:39.1]} 29... h6 {[%clk 0:00:20.3]} 30. f4 {[%clk 0:00:36.3]} 30...
Be7 {[%clk 0:00:19.3]} 31. Rb6 {[%clk 0:00:35.4]} 31... g5 {[%clk 0:00:19]} 32.
Rxh6 {[%clk 0:00:35.1]} 32... gxf4 {[%clk 0:00:18.5]} 33. gxf4 {[%clk
0:00:29.3]} 33... Rg8 {[%clk 0:00:18.6]} 34. Bd6 {[%clk 0:00:21.8]} 34... Rg3+
{[%clk 0:00:18]} 35. Kc4 {[%clk 0:00:22]} 35... Bxd6 {[%clk 0:00:12.6]} 36. Rxd6
{[%clk 0:00:22.9]} 36... Rb7 {[%clk 0:00:11.4]} 37. Kd5 {[%clk 0:00:19.4]} 37...
Rgxb3 {[%clk 0:00:09.8]} 38. Rxc5 {[%clk 0:00:19.5]} 38... d3 {[%clk 0:00:10.4]}
39. Ke5 {[%clk 0:00:20.1]} 39... R3b4 {[%clk 0:00:08.4]} 40. Kxf5 {[%clk
0:00:18.2]} 40... Rxa4 {[%clk 0:00:08]} 41. Rxd3 {[%clk 0:00:18.5]} 41... Ra1
{[%clk 0:00:07.3]} 42. Rcd5 {[%clk 0:00:16.3]} 42... Rh1 {[%clk 0:00:07.8]} 43.
Rd7+ {[%clk 0:00:15.4]} 43... Rxd7 {[%clk 0:00:07.2]} 44. Rxd7+ {[%clk
0:00:16.3]} 44... Kg8 {[%clk 0:00:08.1]} 45. Kf6 {[%clk 0:00:14.9]} 45... Rxh4
{[%clk 0:00:07.2]} 46. Rd8+ {[%clk 0:00:15.6]} 46... Kh7 {[%clk 0:00:07.7]} 47.
f5 {[%clk 0:00:16.5]} 47... Ra4 {[%clk 0:00:07.9]} 48. Re8 {[%clk 0:00:15.7]}
48... Ra6+ {[%clk 0:00:07.6]} 49. Re6 {[%clk 0:00:15.8]} 49... Ra7 {[%clk
0:00:08.1]} 50. Re7+ {[%clk 0:00:16.3]} 50... Rxe7 {[%clk 0:00:06.4]} 51. Kxe7
{[%clk 0:00:17.2]} 1-0